[Event "27th Kavala Open 2018"]
[Site "Kavala"]
[Date "2018.08.08"]
[Round "6"]
[White "Nikolaou, Spiridon"]
[Black "Sandalakis, Angelos"]
[Result "0-1"]
[ECO "A05"]
[WhiteElo "2207"]
[BlackElo "2444"]
[Annotator "NA RC"]
[PlyCount "118"]
[EventDate "2018.08.06"]
[EventType "swiss"]
[EventCountry "GRE"]
[SourceTitle "playchess.com"]
[Source "ChessBase"]
[SourceQuality "1"]
[TimeControl "40/5400+30:900+30"]

1. Nf3 {[%emt 0:04:51]} Nf6 {[%emt 0:00:07]} 2. g3 {[%emt 0:01:00]} d5 {[%emt 0:00:07]} 3. Bg2 {[%emt 0:00:06]} c6 {[%emt 0:00:07]} 4. O-O {[%emt 0:00:30]} Bf5 {[%emt 0:00:07]} 5. d3 {[%emt 0:00:24]} h6 {[%emt 0:00:07]} 6. Nfd2 {[%emt 0:01:37]} e6 {[%emt 0:00:11]} 7. e4 {[%emt 0:00:18]} Bh7 {[%emt 0:00:08]} 8. Nc3 {[%emt 0:00:05]} Nbd7 {[%emt 0:00:09]} 9. h3 {[%emt 0:00:16]} Be7 {[%emt 0:01:13]} 10. Kh1 {[%emt 0:03:09]} b5 {[%emt 0:04:10]} 11. Qe2 {[%emt 0:02:19]} b4 {[%emt 0:01:05]} 12. Nd1 {[%emt 0:00:06]} O-O {[%emt 0:00:43]} 13. e5 {[%emt 0:03:34]} Ne8 {[%emt 0:00:08]} 14. f4 {[%emt 0:00:14]} Nc7 {[%emt 0:00:20]} 15. Nf3 {[%emt 0:04:03]} c5 {[%emt 0:01:10]} 16. Ne3 {[%emt 0:02:13]} a5 {[%emt 0:01:40]} 17. g4 {[%emt 0:04:47]} Re8 {[%emt 0:06:13]} 18. Qf2 {[%emt 0:02:36]} Bf8 {[%emt 0:01:14]} 19. Qg3 {[%emt 0:01:32]} a4 {[%emt 0:03:21]} 20. g5 {[%emt 0:05:23]} h5 {[%emt 0:13:46]} 21. Nh4 {[%emt 0:03:22]} Be7 {[%emt 0:03:00]} 22. Bf3 {[%emt 0:02:56]} Bg6 {[%emt 0:02:22]} 23. f5 {[%emt 0:04:35]} exf5 {[%emt 0:00:10]} 24. Nxd5 {[%emt 0:01:07]} Ra6 {[%emt 0:00:52]} 25. Nxc7 {[%emt 0:02:06]} Qxc7 {[%emt 0:00:08]} 26. Bf4 {[%emt 0:00:26]} Qa7 {[%emt 0:10:07]} 27. Ng2 {[%emt 0:06:20]} Nf8 {[%emt 0:02:20]} 28. Bd5 {[%emt 0:15:03]} Ne6 {[%emt 0:06:08]} 29. Bc4 {[%emt 0:01:59]} Rb6 {[%emt 0:00:32]} 30. Be3 {[%emt 0:03:55]} Qa8 {[%emt 0:03:52]} 31. Kg1 {[%emt 0:00:51]} Qd8 {[%emt 0:00:54]} 32. h4 {[%emt 0:04:53]} Qb8 {[%emt 0:05:44]} 33. Rae1 {[%emt 0:05:26]} Bd8 {[%emt 0:02:43]} 34. Bxe6 {[%emt 0:06:19]} Rbxe6 {[%emt 0:00:06]} 35. Bxc5 {[%emt 0:00:30]} Bb6 {[%emt 0:00:17]} 36. Bxb6 {[%emt 0:02:15]} Qxb6+ {[%emt 0:00:07]} 37. Qf2 {[%emt 0:02:05]} Qc7 {[%emt 0:00:32]} 38. d4 {[%emt 0:00:38]} Rc6 {[%emt 0:04:02]} 39. Re2 {[%emt 0:01:22]} f4 {[%emt 0:02:34]} 40. Nxf4 {[%emt 0:00:00]} Bxc2 {[%emt 0:00:00]} 41. Nd5 {[%emt 0:06:12]} Qb7 {[%emt 0:00:31]} 42. Nxb4 {[%emt 0:03:54]} Bg6 {[%emt 0:01:43]} 43. Nxc6 {[%emt 0:00:13]} Qxc6 {[%emt 0:00:02]} 44. Rd1 {[%emt 0:07:12]} Be4 {[%emt 0:00:42]} 45. Re3 {[%emt 0:01:00]} Bd5 {[%emt 0:00:08]} 46. a3 {[%emt 0:03:13]} Rb8 {[%emt 0:02:09]} 47. Rc3 {[%emt 0:00:49]} Qe6 {[%emt 0:00:07]} 48. Rdd3 {[%emt 0:00:37]} Qg4+ {[%emt 0:00:18]} 49. Kf1 {[%emt 0:00:34]} Be4 {[%emt 0:01:07]} 50. Re3 {[%emt 0:00:30]} Bd5 {[%emt 0:02:42]} 51. Red3 {[%emt 0:00:04]} Kh7 {[%emt 0:03:13]} 52. Ke1 {[%emt 0:00:26]} Rb7 {[%emt 0:14:00]} 53. Rd2 {[%emt 0:00:52]} Qe4+ {[%emt 0:00:20]} 54. Re3 {[%emt 0:00:36]} Qh1+ {[%emt 0:00:36]} 55. Qf1 {[%emt 0:00:35]} Qxh4+ {[%emt 0:00:05]} 56. Kd1 {[%emt 0:00:23]} Qxg5 {[%emt 0:00:42]} 57. Qd3+ {[%emt 0:00:18]} g6 {[%emt 0:00:09]} 58. Kc1 {[%emt 0:00:44]} Rb3 {[%emt 0:02:00]} 59. Rg3 {[%emt 0:00:34]} Qxg3 {[%emt 0:00:07]} 0-1

[Event "27th Kavala Open 2018"]
[Site "Kavala"]
[Date "2018.08.08"]
[Round "6"]
[White "Ladopoulos, Dimitrios"]
[Black "Prince, Bajaj"]
[Result "1/2-1/2"]
[ECO "B33"]
[WhiteElo "2191"]
[BlackElo "2411"]
[Annotator "NA"]
[PlyCount "71"]
[EventDate "2018.08.06"]
[EventType "swiss"]
[EventCountry "GRE"]
[SourceTitle "playchess.com"]
[Source "ChessBase"]
[SourceQuality "1"]
[TimeControl "40/5400+30:900+30"]

1. e4 {[%emt 0:00:07]} c5 {[%emt 0:00:04]} 2. Nf3 {[%emt 0:00:18]} Nc6 {[%emt 0:00:07]} 3. d4 {[%emt 0:00:23]} cxd4 {[%emt 0:00:06]} 4. Nxd4 {[%emt 0:00:04]} Nf6 {[%emt 0:00:15]} 5. Nc3 {[%emt 0:00:06]} e6 {[%emt 0:00:05]} 6. Ndb5 {[%emt 0:00:21]} Bb4 {[%emt 0:00:12]} 7. a3 {[%emt 0:00:12]} Bxc3+ {[%emt 0:00:05]} 8. Nxc3 {[%emt 0:00:04]} d5 {[%emt 0:00:03]} 9. exd5 {[%emt 0:00:11]} exd5 {[%emt 0:00:09]} 10. Bd3 {[%emt 0:00:51]} O-O {[%emt 0:00:06]} 11. O-O {[%emt 0:00:06]} d4 {[%emt 0:00:03]} 12. Ne2 {[%emt 0:00:32]} Bg4 {[%emt 0:00:20]} 13. Bg5 {[%emt 0:01:01]} Qd6 {[%emt 0:20:05]} 14. Re1 {[%emt 0:08:38]} Rfe8 {[%emt 0:10:10]} 15. Qd2 {[%emt 0:02:05]} Bxe2 {[%emt 0:01:26]} 16. Bf4 {[%emt 0:00:30]} Qd5 {[%emt 0:02:28]} 17. Bxe2 {[%emt 0:00:21]} Ne4 {[%emt 0:06:50]} 18. Bf3 {[%emt 0:03:52]} Qf5 {[%emt 0:01:34]} 19. Qd3 {[%emt 0:01:51]} Qxf4 {[%emt 0:02:15]} 20. Rxe4 {[%emt 0:00:12]} Rxe4 {[%emt 0:02:33]} 21. Qxe4 {[%emt 0:01:31]} Qxe4 {[%emt 0:07:46]} 22. Bxe4 {[%emt 0:00:07]} Kf8 {[%emt 0:05:59]} 23. Rd1 {[%emt 0:04:32]} Rc8 {[%emt 0:04:22]} 24. Kf1 {[%emt 0:03:48]} g6 {[%emt 0:15:43]} 25. Ke2 {[%emt 0:04:11]} a5 {[%emt 0:03:59]} 26. b3 {[%emt 0:09:51]} f5 {[%emt 0:01:33]} 27. Bxc6 {[%emt 0:00:08]} Rxc6 {[%emt 0:00:05]} 28. Rd2 {[%emt 0:01:25]} a4 {[%emt 0:03:55]} 29. bxa4 {[%emt 0:00:35]} Rc4 {[%emt 0:00:08]} 30. a5 {[%emt 0:05:29]} Ke7 {[%emt 0:04:50]} 31. Kd1 {[%emt 0:06:44]} Ra4 {[%emt 0:00:46]} 32. Kc1 {[%emt 0:00:24]} Rxa3 {[%emt 0:01:23]} 33. Rxd4 {[%emt 0:00:13]} Rxa5 {[%emt 0:00:03]} 34. Rb4 {[%emt 0:00:09]} b5 {[%emt 0:01:08]} 35. Kb2 {[%emt 0:00:19]} Kd6 {[%emt 0:00:31]} 36. Rd4+ {[%emt 0:00:22]} 1/2-1/2

[Event "27th Kavala Open 2018"]
[Site "Kavala"]
[Date "2018.08.08"]
[Round "6"]
[White "Isaakidis, Alexandros"]
[Black "Magalashvili, Davit"]
[Result "0-1"]
[ECO "B90"]
[WhiteElo "2137"]
[BlackElo "2508"]
[Annotator "ChessBase"]
[PlyCount "106"]
[EventDate "2018.08.06"]
[EventType "swiss"]
[EventCountry "GRE"]
[SourceTitle "playchess.com"]
[Source "ChessBase"]
[SourceQuality "1"]
[TimeControl "40/5400+30:900+30"]

1. e4 {[%emt 0:02:32]} c5 {[%emt 0:00:01]} 2. Nf3 {[%emt 0:00:06]} d6 {[%emt 0:00:04]} 3. d4 {[%emt 0:00:08]} cxd4 {[%emt 0:00:05]} 4. Nxd4 {[%emt 0:00:06]} Nf6 {[%emt 0:00:02]} 5. Nc3 {[%emt 0:00:10]} a6 {[%emt 0:00:10]} 6. h3 {[%emt 0:00:21]} e6 {[%emt 0:00:58]} 7. g4 {[%emt 0:00:06]} d5 {[%emt 0:00:03]} 8. Nde2 {[%emt 0:00:54]} Bb4 {[%emt 0:07:19]} 9. a3 {[%emt 0:02:59]} Ba5 {[%emt 0:07:25]} 10. b4 {[%emt 0:06:17]} Bb6 {[%emt 0:01:24]} 11. g5 {[%emt 0:09:18]} Nxe4 {[%emt 0:01:50]} 12. Nxe4 {[%emt 0:00:08]} dxe4 {[%emt 0:00:06]} 13. Qxd8+ {[%emt 0:00:05]} Bxd8 {[%emt 0:00:32]} 14. Ng3 {[%emt 0:05:46]} Bd7 {[%emt 0:01:29]} 15. Nxe4 {[%emt 0:01:55]} Bc6 {[%emt 0:00:04]} 16. Bg2 {[%emt 0:00:44]} O-O {[%emt 0:00:38]} 17. O-O {[%emt 0:03:37]} Be7 {[%emt 0:05:37]} 18. Bf4 {[%emt 0:05:39]} Nd7 {[%emt 0:00:55]} 19. Rfd1 {[%emt 0:05:44]} Nb6 {[%emt 0:03:31]} 20. Bd6 {[%emt 0:02:04]} Rfe8 {[%emt 0:01:48]} 21. Bxe7 {[%emt 0:20:25]} Rxe7 {[%emt 0:01:02]} 22. Nd6 {[%emt 0:00:27]} Bxg2 {[%emt 0:00:56]} 23. Kxg2 {[%emt 0:00:25]} Rc7 {[%emt 0:00:18]} 24. c4 {[%emt 0:01:55]} Nxc4 {[%emt 0:06:41]} 25. Nxc4 {[%emt 0:12:02]} Rxc4 {[%emt 0:00:36]} 26. Rac1 {[%emt 0:00:01]} Rxc1 {[%emt 0:10:14]} 27. Rxc1 {[%emt 0:00:15]} h6 {[%emt 0:00:25]} 28. h4 {[%emt 0:02:03]} hxg5 {[%emt 0:07:05]} 29. hxg5 {[%emt 0:00:14]} Rd8 {[%emt 0:08:18]} 30. g6 {[%emt 0:06:03]} fxg6 {[%emt 0:01:52]} 31. Rc7 {[%emt 0:00:16]} b5 {[%emt 0:16:42]} 32. Rc6 {[%emt 0:00:36]} Kf7 {[%emt 0:00:08]} 33. Rxa6 {[%emt 0:00:30]} Kf6 {[%emt 0:00:24]} 34. Rb6 {[%emt 0:01:28]} Rd5 {[%emt 0:03:09]} 35. Rb7 {[%emt 0:00:08]} g5 {[%emt 0:00:24]} 36. Rb8 {[%emt 0:01:13]} g4 {[%emt 0:02:20]} 37. Rf8+ {[%emt 0:03:36]} Kg5 {[%emt 0:00:36]} 38. Re8 {[%emt 0:00:45]} Kf5 {[%emt 0:00:39]} 39. Rf8+ {[%emt 0:01:12]} Ke4 {[%emt 0:01:30]} 40. Kg3 {[%emt 0:00:00]} Rf5 {[%emt 0:00:00]} 41. Rc8 {[%emt 0:11:10]} Rf3+ {[%emt 0:07:00]} 42. Kg2 {[%emt 0:00:00]} Rxa3 {[%emt 0:03:22]} 43. Rb8 {[%emt 0:00:24]} Kf4 {[%emt 0:00:47]} 44. Rf8+ {[%emt 0:00:34]} Kg5 {[%emt 0:00:42]} 45. Rb8 {[%emt 0:01:09]} g3 {[%emt 0:02:54]} 46. Rxb5+ {[%emt 0:02:54]} Kg4 {[%emt 0:04:37]} 47. Re5 {[%emt 0:01:54]} Ra2 {[%emt 0:00:13]} 48. Rxe6 {[%emt 0:00:10]} Rxf2+ {[%emt 0:00:41]} 49. Kg1 {[%emt 0:00:19]} Rb2 {[%emt 0:00:06]} 50. Re1 {[%emt 0:00:52]} Kh3 {[%emt 0:00:39]} 51. Ra1 {[%emt 0:00:51]} Rxb4 {[%emt 0:00:22]} 52. Rc1 {[%emt 0:00:06]} Rb3 {[%emt 0:00:51]} 53. Rf1 {[%emt 0:05:12]} g5 {[%emt 0:00:08]} 0-1

[Event "27th Kavala Open 2018"]
[Site "Kavala"]
[Date "2018.08.09"]
[Round "7"]
[White "Iljin, Artem"]
[Black "Ambartsumova, Karina"]
[Result "1/2-1/2"]
[ECO "A05"]
[WhiteElo "2520"]
[BlackElo "2377"]
[Annotator "ChessBase"]
[PlyCount "20"]
[EventDate "2018.08.05"]
[EventType "swiss"]
[EventCountry "GRE"]
[SourceTitle "playchess.com"]
[Source "ChessBase"]
[SourceQuality "1"]
[TimeControl "40/5400+30:900+30"]

1. Nf3 {[%emt 0:00:07]} Nf6 {[%emt 0:00:18]} 2. d4 {[%emt 0:00:20]} d5 {[%emt 0:00:40]} 3. c4 {[%emt 0:00:18]} e6 {[%emt 0:00:28]} 4. e3 {[%emt 0:00:53]} Be7 {[%emt 0:01:47]} 5. Nc3 {[%emt 0:00:49]} O-O {[%emt 0:01:56]} 6. Bd3 {[%emt 0:01:06]} b6 {[%emt 0:01:58]} 7. O-O {[%emt 0:00:57]} Bb7 {[%emt 0:01:36]} 8. cxd5 {[%emt 0:01:02]} exd5 {[%emt 0:00:36]} 9. b3 {[%emt 0:00:54]} c5 {[%emt 0:01:05]} 10. Bb2 {[%emt 0:01:45]} Bc8 1/2-1/2

[Event "27th Kavala Open 2018"]
[Site "Kavala"]
[Date "2018.08.09"]
[Round "7"]
[White "Neelotpal, Das"]
[Black "Theodorou, Nikolas"]
[Result "0-1"]
[ECO "B94"]
[WhiteElo "2429"]
[BlackElo "2532"]
[Annotator "ChessBase"]
[PlyCount "56"]
[EventDate "2018.08.05"]
[EventType "swiss"]
[EventCountry "GRE"]
[SourceTitle "playchess.com"]
[Source "ChessBase"]
[SourceQuality "1"]
[TimeControl "40/5400+30:900+30"]

1. e4 {[%emt 0:00:08]} c5 {[%emt 0:00:07]} 2. Nf3 {[%emt 0:00:36]} d6 {[%emt 0:00:06]} 3. d4 {[%emt 0:02:06]} cxd4 {[%emt 0:00:04]} 4. Nxd4 {[%emt 0:00:04]} Nf6 {[%emt 0:00:06]} 5. Nc3 {[%emt 0:00:07]} a6 {[%emt 0:00:03]} 6. Bg5 {[%emt 0:01:00]} Nbd7 {[%emt 0:00:49]} 7. Qe2 {[%emt 0:00:39]} h6 {[%emt 0:02:10]} 8. Bh4 {[%emt 0:02:14]} g6 {[%emt 0:00:04]} 9. f4 {[%emt 0:02:14]} e5 {[%emt 0:00:15]} 10. fxe5 {[%emt 0:05:59]} dxe5 {[%emt 0:00:05]} 11. Nf3 {[%emt 0:01:36]} b5 {[%emt 0:11:56]} 12. O-O-O {[%emt 0:15:27]} Qc7 {[%emt 0:01:36]} 13. Kb1 {[%emt 0:16:56]} Bg7 {[%emt 0:08:29]} 14. Nd5 {[%emt 0:06:25]} Nxd5 {[%emt 0:09:15]} 15. exd5 {[%emt 0:00:04]} O-O {[%emt 0:01:46]} 16. g4 {[%emt 0:11:28]} Bb7 {[%emt 0:06:39]} 17. Bg2 {[%emt 0:00:26]} Rac8 {[%emt 0:06:33]} 18. c3 {[%emt 0:07:49]} e4 {[%emt 0:10:49]} 19. Qxe4 {[%emt 0:05:40]} Rfe8 {[%emt 0:00:02]} 20. Qb4 {[%emt 0:00:29]} Qb6 {[%emt 0:07:10]} 21. Bf1 {[%emt 0:04:14]} g5 {[%emt 0:02:55]} 22. Bg3 {[%emt 0:01:57]} Nf6 {[%emt 0:01:30]} 23. Qb3 {[%emt 0:09:28]} Nxd5 {[%emt 0:05:44]} 24. Rxd5 {[%emt 0:00:25]} Qe3 {[%emt 0:00:03]} 25. Rd3 {[%emt 0:03:33]} Be4 {[%emt 0:00:04]} 26. Qc2 {[%emt 0:01:08]} Rcd8 {[%emt 0:00:08]} 27. Ne1 {[%emt 0:00:38]} Rxd3 {[%emt 0:00:14]} 28. Qxd3 {[%emt 0:00:26]} Rd8 {[%emt 0:01:16]} 0-1

[Event "27th Kavala Open 2018"]
[Site "Kavala"]
[Date "2018.08.09"]
[Round "7"]
[White "Bednarek, Sylwester"]
[Black "Beliotis, Georgios"]
[Result "1-0"]
[ECO "A45"]
[WhiteElo "2359"]
[BlackElo "2117"]
[Annotator "NA"]
[PlyCount "125"]
[EventDate "2018.08.05"]
[EventType "swiss"]
[EventCountry "GRE"]
[SourceTitle "playchess.com"]
[Source "ChessBase"]
[SourceQuality "1"]
[TimeControl "40/5400+30:900+30"]

1. d4 {[%emt 0:00:10]} Nf6 {[%emt 0:01:03]} 2. Bg5 {[%emt 0:00:11]} d5 {[%emt 0:00:12]} 3. Bxf6 {[%emt 0:00:07]} gxf6 {[%emt 0:00:06]} 4. c4 {[%emt 0:00:07]} dxc4 {[%emt 0:11:04]} 5. e3 {[%emt 0:00:28]} c5 {[%emt 0:00:59]} 6. d5 {[%emt 0:00:21]} a6 {[%emt 0:05:28]} 7. a4 {[%emt 0:00:13]} Nd7 {[%emt 0:03:20]} 8. Nf3 {[%emt 0:23:09]} Rg8 {[%emt 0:13:19]} 9. Nc3 {[%emt 0:06:57]} f5 {[%emt 0:03:53]} 10. g3 {[%emt 0:01:06]} Bg7 {[%emt 0:06:28]} 11. Bg2 {[%emt 0:05:28]} Qa5 {[%emt 0:06:40]} 12. O-O {[%emt 0:02:19]} Qb4 {[%emt 0:04:06]} 13. Rb1 {[%emt 0:14:58]} Ne5 {[%emt 0:02:41]} 14. d6 {[%emt 0:09:00]} e6 {[%emt 0:04:00]} 15. Nxe5 {[%emt 0:00:21]} Bxe5 {[%emt 0:00:09]} 16. f4 {[%emt 0:00:05]} Bf6 {[%emt 0:01:27]} 17. e4 {[%emt 0:04:44]} Bd4+ {[%emt 0:01:32]} 18. Kh1 {[%emt 0:00:01]} fxe4 {[%emt 0:05:46]} 19. f5 {[%emt 0:03:12]} Bd7 {[%emt 0:07:14]} 20. fxe6 {[%emt 0:01:44]} Bxe6 {[%emt 0:00:11]} 21. d7+ {[%emt 0:00:17]} Kxd7 {[%emt 0:00:53]} 22. Qh5 {[%emt 0:00:10]} Rad8 {[%emt 0:03:06]} 23. Nd5 {[%emt 0:04:52]} Bxd5 {[%emt 0:01:52]} 24. Qxd5+ {[%emt 0:00:02]} Kc8 {[%emt 0:00:14]} 25. Qxe4 {[%emt 0:00:05]} f6 {[%emt 0:00:35]} 26. Qxh7 {[%emt 0:01:51]} Rh8 {[%emt 0:00:52]} 27. Qe4 {[%emt 0:04:39]} Rxh2+ {[%emt 0:08:42]} 28. Kxh2 {[%emt 0:00:05]} Rh8+ {[%emt 0:00:07]} 29. Bh3+ {[%emt 0:00:45]} Kb8 {[%emt 0:00:36]} 30. Qe2 {[%emt 0:01:11]} Be5 {[%emt 0:02:01]} 31. Rf5 {[%emt 0:02:14]} Ka7 {[%emt 0:01:14]} 32. Rxe5 {[%emt 0:00:20]} fxe5 {[%emt 0:00:06]} 33. Rc1 {[%emt 0:00:08]} Rd8 {[%emt 0:02:41]} 34. Bg2 {[%emt 0:00:57]} c3 {[%emt 0:03:43]} 35. bxc3 {[%emt 0:00:09]} Qxa4 {[%emt 0:00:05]} 36. Qxe5 {[%emt 0:00:19]} Qc4 {[%emt 0:00:33]} 37. Qc7 {[%emt 0:06:10]} Rh8+ {[%emt 0:00:42]} 38. Kg1 {[%emt 0:00:04]} Qb5 {[%emt 0:00:39]} 39. Re1 {[%emt 0:02:52]} c4 {[%emt 0:00:38]} 40. Qe5 {[%emt 0:00:00]} Qb6+ {[%emt 0:00:00]} 41. Qe3 {[%emt 0:00:40]} Qxe3+ {[%emt 0:01:22]} 42. Rxe3 {[%emt 0:00:03]} b5 {[%emt 0:00:11]} 43. g4 {[%emt 0:00:36]} a5 {[%emt 0:00:25]} 44. Re7+ {[%emt 0:05:58]} Kb6 {[%emt 0:00:07]} 45. Re6+ {[%emt 0:00:03]} Ka7 {[%emt 0:01:12]} 46. Bc6 {[%emt 0:03:53]} b4 {[%emt 0:01:34]} 47. cxb4 {[%emt 0:03:32]} axb4 {[%emt 0:00:07]} 48. Re4 {[%emt 0:00:05]} b3 {[%emt 0:13:06]} 49. Rxc4 {[%emt 0:00:06]} Kb6 {[%emt 0:00:05]} 50. Bd7 {[%emt 0:00:25]} Rd8 {[%emt 0:00:27]} 51. Bf5 {[%emt 0:00:19]} Kb5 {[%emt 0:00:07]} 52. Rc8 {[%emt 0:00:54]} Rd2 {[%emt 0:01:45]} 53. Rb8+ {[%emt 0:03:27]} Ka4 {[%emt 0:01:02]} 54. Re8 {[%emt 0:01:05]} b2 {[%emt 0:00:38]} 55. Re1 {[%emt 0:00:17]} Kb3 {[%emt 0:00:35]} 56. Rf1 {[%emt 0:00:06]} Kc3 {[%emt 0:00:39]} 57. Rf2 {[%emt 0:02:18]} Rd4 {[%emt 0:00:14]} 58. Rg2 {[%emt 0:01:44]} Rf4 {[%emt 0:00:25]} 59. Bb1 {[%emt 0:00:06]} Rd4 {[%emt 0:00:53]} 60. Kh2 {[%emt 0:00:15]} Rd1 {[%emt 0:00:13]} 61. Rg1 {[%emt 0:00:06]} Rd2+ {[%emt 0:00:53]} 62. Kh3 {[%emt 0:00:07]} Kd4 {[%emt 0:00:27]} 63. Rg2 {[%emt 0:00:33]} 1-0

[Event "27th Kavala Open 2018"]
[Site "Kavala"]
[Date "2018.08.09"]
[Round "7"]
[White "Grigoriadis, Alexandros"]
[Black "Schitco, Ivan"]
[Result "1/2-1/2"]
[ECO "D03"]
[WhiteElo "2211"]
[BlackElo "2377"]
[Annotator "NA"]
[PlyCount "122"]
[EventDate "2018.08.05"]
[EventType "swiss"]
[EventCountry "GRE"]
[SourceTitle "playchess.com"]
[Source "ChessBase"]
[SourceQuality "1"]
[TimeControl "40/5400+30:900+30"]

1. d4 {[%emt 0:00:07]} Nf6 {[%emt 0:00:16]} 2. Nf3 {[%emt 0:00:09]} d5 {[%emt 0:01:32]} 3. Bg5 {[%emt 0:00:39]} c5 {[%emt 0:01:10]} 4. e3 {[%emt 0:01:17]} Nc6 {[%emt 0:00:52]} 5. c3 {[%emt 0:01:09]} Qb6 {[%emt 0:05:10]} 6. Qb3 {[%emt 0:01:16]} e6 {[%emt 0:03:26]} 7. Nbd2 {[%emt 0:02:38]} h6 {[%emt 0:02:44]} 8. Bh4 {[%emt 0:02:49]} g5 {[%emt 0:00:16]} 9. Bg3 {[%emt 0:00:12]} Qxb3 {[%emt 0:09:16]} 10. axb3 {[%emt 0:00:33]} Nh5 {[%emt 0:01:23]} 11. Be5 {[%emt 0:05:49]} f6 {[%emt 0:01:56]} 12. Bc7 {[%emt 0:00:59]} Kd7 {[%emt 0:07:16]} 13. Bb6 {[%emt 0:01:00]} cxd4 {[%emt 0:02:33]} 14. exd4 {[%emt 0:00:47]} Bd6 {[%emt 0:06:59]} 15. Bb5 {[%emt 0:13:36]} a6 {[%emt 0:02:31]} 16. g3 {[%emt 0:03:44]} Bc7 {[%emt 0:04:05]} 17. Bxc7 {[%emt 0:00:40]} Kxc7 {[%emt 0:00:03]} 18. Bxc6 {[%emt 0:00:17]} bxc6 {[%emt 0:03:50]} 19. O-O {[%emt 0:00:57]} e5 {[%emt 0:01:32]} 20. dxe5 {[%emt 0:03:41]} g4 {[%emt 0:00:06]} 21. Nh4 {[%emt 0:00:20]} fxe5 {[%emt 0:00:11]} 22. b4 {[%emt 0:01:54]} Re8 {[%emt 0:05:02]} 23. Nb3 {[%emt 0:06:40]} Kb6 {[%emt 0:11:23]} 24. Ra5 {[%emt 0:00:39]} Ra7 {[%emt 0:03:58]} 25. Nc5 {[%emt 0:02:38]} Ng7 {[%emt 0:09:36]} 26. Re1 {[%emt 0:03:30]} e4 {[%emt 0:04:33]} 27. Ng2 {[%emt 0:04:44]} h5 {[%emt 0:02:05]} 28. Ne3 {[%emt 0:00:58]} h4 {[%emt 0:01:58]} 29. gxh4 {[%emt 0:03:13]} Rh8 {[%emt 0:01:44]} 30. Nb3 {[%emt 0:06:06]} Nf5 {[%emt 0:02:17]} 31. Nxf5 {[%emt 0:01:18]} Bxf5 {[%emt 0:00:02]} 32. Nd4 {[%emt 0:00:46]} Bg6 {[%emt 0:03:41]} 33. Rc5 {[%emt 0:01:13]} Rc7 {[%emt 0:00:46]} 34. Ra1 {[%emt 0:05:59]} Bf7 {[%emt 0:01:20]} 35. Rca5 {[%emt 0:00:47]} Ra7 {[%emt 0:00:08]} 36. Nb3 {[%emt 0:10:52]} Be6 {[%emt 0:00:18]} 37. h5 {[%emt 0:00:54]} Bc8 {[%emt 0:01:04]} 38. Nc5 {[%emt 0:00:16]} Rxh5 {[%emt 0:00:19]} 39. Nxe4 {[%emt 0:00:34]} Re7 {[%emt 0:01:14]} 40. Ng3 {[%emt 0:00:00]} Rhe5 {[%emt 0:00:00]} 41. Kf1 {[%emt 0:07:13]} Rh7 {[%emt 0:01:37]} 42. Kg2 {[%emt 0:00:59]} Rhe7 {[%emt 0:01:01]} 43. Rd1 {[%emt 0:01:10]} Re1 {[%emt 0:01:36]} 44. Raa1 {[%emt 0:00:09]} Rxd1 {[%emt 0:00:12]} 45. Rxd1 {[%emt 0:00:06]} a5 {[%emt 0:00:02]} 46. bxa5+ {[%emt 0:01:51]} Kxa5 {[%emt 0:00:02]} 47. Rd4 {[%emt 0:01:49]} c5 {[%emt 0:00:46]} 48. b4+ {[%emt 0:00:29]} cxb4 {[%emt 0:04:48]} 49. cxb4+ {[%emt 0:02:16]} Ka4 {[%emt 0:00:37]} 50. Nf1 {[%emt 0:00:59]} Kb3 {[%emt 0:02:35]} 51. Ne3 {[%emt 0:00:19]} Re5 {[%emt 0:00:23]} 52. Kg3 {[%emt 0:00:45]} Bb7 {[%emt 0:00:21]} 53. Rxg4 {[%emt 0:04:25]} Kc3 {[%emt 0:00:32]} 54. Rg7 {[%emt 0:01:21]} Ba6 {[%emt 0:00:19]} 55. Ra7 {[%emt 0:01:12]} Bc4 {[%emt 0:01:51]} 56. Nxc4 {[%emt 0:05:02]} dxc4 {[%emt 0:00:25]} 57. f4 {[%emt 0:00:26]} Rh5 {[%emt 0:02:12]} 58. Ra5 {[%emt 0:03:12]} Rh8 {[%emt 0:00:27]} 59. Rc5 {[%emt 0:00:06]} Kxb4 {[%emt 0:00:13]} 60. Rc7 {[%emt 0:00:04]} Rg8+ {[%emt 0:01:08]} 61. Kf3 {[%emt 0:03:14]} Rh8 {[%emt 0:00:01]} 1/2-1/2

[Event "27th Kavala Open 2018"]
[Site "Kavala"]
[Date "2018.08.09"]
[Round "7"]
[White "Alexakis, Georgios"]
[Black "Pezelj, Novak"]
[Result "1-0"]
[ECO "B03"]
[WhiteElo "2056"]
[BlackElo "2483"]
[Annotator "ChessBase"]
[PlyCount "69"]
[EventDate "2018.08.05"]
[EventType "swiss"]
[EventCountry "GRE"]
[SourceTitle "playchess.com"]
[Source "ChessBase"]
[SourceQuality "1"]
[TimeControl "40/5400+30:900+30"]

1. e4 {[%emt 0:04:37]} Nf6 {[%emt 0:00:12]} 2. e5 {[%emt 0:00:28]} Nd5 {[%emt 0:00:15]} 3. d4 {[%emt 0:00:39]} d6 {[%emt 0:00:22]} 4. c4 {[%emt 0:00:40]} Nb6 {[%emt 0:00:12]} 5. f4 {[%emt 0:00:55]} dxe5 {[%emt 0:04:02]} 6. fxe5 {[%emt 0:00:22]} Bf5 {[%emt 0:01:51]} 7. Nc3 {[%emt 0:03:22]} e6 {[%emt 0:00:22]} 8. Be3 {[%emt 0:03:34]} Be7 {[%emt 0:01:16]} 9. Be2 {[%emt 0:07:12]} O-O {[%emt 0:02:55]} 10. Nf3 {[%emt 0:00:40]} Nc6 {[%emt 0:01:25]} 11. O-O {[%emt 0:01:04]} f6 {[%emt 0:10:34]} 12. exf6 {[%emt 0:03:44]} Bxf6 {[%emt 0:00:05]} 13. Qd2 {[%emt 0:03:50]} Qe8 {[%emt 0:06:00]} 14. Bg5 {[%emt 0:06:54]} Rd8 {[%emt 0:10:12]} 15. Bxf6 {[%emt 0:00:12]} Rxf6 {[%emt 0:00:14]} 16. Qe3 {[%emt 0:05:56]} Rf8 {[%emt 0:16:25]} 17. Rad1 {[%emt 0:04:43]} Qe7 {[%emt 0:01:30]} 18. b3 {[%emt 0:02:55]} h6 {[%emt 0:08:54]} 19. Bd3 {[%emt 0:06:15]} Bxd3 {[%emt 0:00:31]} 20. Rxd3 {[%emt 0:01:05]} a6 {[%emt 0:02:45]} 21. Re1 {[%emt 0:02:58]} Rfe8 {[%emt 0:01:02]} 22. Rd2 {[%emt 0:02:54]} Qf7 {[%emt 0:02:52]} 23. Rde2 {[%emt 0:03:22]} Re7 {[%emt 0:00:17]} 24. Ne5 {[%emt 0:08:04]} Nxe5 {[%emt 0:00:42]} 25. Qxe5 {[%emt 0:00:21]} Nc8 {[%emt 0:07:02]} 26. Re3 {[%emt 0:06:35]} Red7 {[%emt 0:01:48]} 27. Rf1 {[%emt 0:03:27]} Qe7 {[%emt 0:08:22]} 28. Ne2 {[%emt 0:01:04]} Rd6 {[%emt 0:00:12]} 29. Nf4 {[%emt 0:03:40]} Rxd4 {[%emt 0:00:17]} 30. Nxe6 {[%emt 0:01:50]} Rd1 {[%emt 0:04:01]} 31. Nxd8 {[%emt 0:00:53]} Qxe5 {[%emt 0:00:04]} 32. Rxe5 {[%emt 0:00:20]} Rxd8 {[%emt 0:00:07]} 33. Rd5 {[%emt 0:00:44]} Nd6 {[%emt 0:00:21]} 34. c5 {[%emt 0:00:57]} Nf7 {[%emt 0:00:04]} 35. Rfd1 {[%emt 0:01:15]} 1-0